fUST/lending_fUST_20240804
["ID","MTS","AMOUNT","RATE_DAILY","PERIOD"]
[334050194,1722708647246,-500.0,0.00013972,2]
[334050195,1722708647256,-500.0,0.00013972,2]
[334050196,1722708647265,-500.0,0.00013972,2]
[334050197,1722708647275,-500.0,0.00013972,2]
[334050198,1722708647284,-500.0,0.00013972,2]
[334050199,1722708647293,-500.0,0.00013972,2]
[334050200,1722708647303,-500.0,0.00013972,2]
[334050201,1722708647312,-500.0,0.00013972,2]
[334050202,1722708647322,-500.0,0.00013972,2]
[334050203,1722708647331,-500.0,0.00013972,2]
[334050204,1722708647340,-500.0,0.00013972,2]
[334050205,1722708647350,-205.54255952,0.00013972,2]
[334050206,1722708647359,-500.0,0.00013972,2]
[334050207,1722708647369,-500.0,0.00013972,2]
[334050208,1722708647379,-500.0,0.00013972,2]
[334050209,1722708647389,-500.0,0.00013972,2]
[334050210,1722708647398,-500.0,0.00013972,2]
[334050211,1722708647407,-500.0,0.00013972,2]
[334050212,1722708647416,-573.22,0.00013972,2]
[334050213,1722708647425,-500.0,0.00013972,2]
[334050214,1722708647434,-151.0,0.00013972,2]
[334050215,1722708647444,-709.72,0.00013972,2]
[334050216,1722708647453,-500.0,0.00013972,2]
[334050217,1722708647462,-500.0,0.00013972,2]
[334050218,1722708647471,-304.000865,0.00013972,2]
[334050219,1722708647480,-789.82,0.00013972,2]
[334050220,1722708647489,-500.0,0.00013972,2]
[334050221,1722708647498,-304.000865,0.00013972,2]
[334050222,1722708647507,-500.0,0.00013972,2]
[334050223,1722708647517,-500.0,0.00013972,2]
[334050224,1722708647526,-500.0,0.00013972,2]
[334050225,1722708647535,-500.0,0.00013972,2]
[334050226,1722708647545,-500.0,0.00013972,2]
[334050227,1722708647554,-500.0,0.00013972,2]
[334050228,1722708647568,-500.0,0.00013972,2]
[334050229,1722708647577,-500.0,0.00013972,2]
[334050230,1722708647587,-500.0,0.00013972,2]
[334050231,1722708647597,-500.0,0.00013972,2]
[334050232,1722708647607,-611.6,0.00013972,2]
[334050233,1722708647616,-151.0,0.00013972,2]
[334050234,1722708647643,-500.0,0.00013972,2]
[334050235,1722708647653,-500.0,0.00013972,2]
[334050236,1722708647662,-151.0,0.00013972,2]
[334050237,1722708647671,-151.0,0.00013972,2]
[334050238,1722708647680,-151.0,0.00013972,2]
[334050239,1722708647689,-500.0,0.00013972,2]
[334050240,1722708647699,-563.68,0.00013972,2]
[334050241,1722708647709,-151.0,0.00013972,2]
[334050242,1722708647718,-500.0,0.00013972,2]
[334050243,1722708647728,-2264.58,0.00013972,2]
[334050244,1722708647738,-151.0,0.00013972,2]
[334050245,1722708647747,-151.0,0.00013972,2]
[334050246,1722708647756,-500.0,0.00013972,2]
[334050247,1722708647767,-500.0,0.00013972,2]
[334050248,1722708647777,-500.0,0.00013972,2]
[334050249,1722708647787,-1855.2,0.00013972,2]
[334050250,1722708647796,-2350.54,0.00013972,2]
[334050251,1722708647805,-738.93,0.00013972,2]
[334050252,1722708647814,-500.0,0.00013972,2]
[334050253,1722708647824,-500.0,0.00013972,2]
[334050254,1722708647833,-1122.17,0.00013972,2]
[334050255,1722708647842,-638.59188,0.00013972,2]
[334050256,1722708647851,-500.0,0.00013972,2]
[334050257,1722708647861,-500.0,0.00013972,2]
[334050258,1722708647870,-638.59188,0.00013972,2]
[334050259,1722708647879,-500.0,0.00013972,2]
[334050260,1722708647888,-500.0,0.00013972,2]
[334050261,1722708647897,-500.0,0.00013972,2]
[334050262,1722708647907,-500.0,0.00013972,2]
[334050263,1722708647916,-500.0,0.00013972,2]
[334050264,1722708647925,-500.0,0.00013972,2]
[334050265,1722708647935,-500.0,0.00013972,2]
[334050266,1722708647944,-500.0,0.00013972,2]
[334050267,1722708647953,-592.62,0.00013972,2]
[334050268,1722708647961,-500.0,0.00013972,2]
[334050269,1722708647971,-500.0,0.00013972,2]
[334050270,1722708647981,-500.0,0.00013972,2]
[334050271,1722708647989,-696.49,0.00013972,2]
[334050272,1722708647998,-1683.96789015,0.00014145,2]
[334050273,1722708648008,-500.0,0.00014235,2]
[334050274,1722708648017,-151.0,0.00014236,2]
[334050275,1722708648026,-51199.1395839,0.00014236,2]
[334050276,1722708648046,-500.0,0.00014245,2]
[334050277,1722708648056,-500.0,0.00014245,2]
[334050278,1722708648066,-1216.38,0.00014245,2]
[334050279,1722708648075,-500.0,0.00014246,2]
[334050280,1722708648085,-500.0,0.00014246,2]
[334050281,1722708648095,-500.0,0.00014246,2]
[334050282,1722708648104,-500.0,0.00014246,2]
[334050283,1722708648114,-500.0,0.00014246,2]
[334050284,1722708648141,-301.35966032,0.00014246,2]
[334050285,1722708648150,-500.0,0.00014246,2]
[334050286,1722708648160,-500.0,0.00014246,2]
[334050287,1722708648169,-500.0,0.00014246,2]
[334050288,1722708648178,-500.0,0.00014246,2]
[334050289,1722708648187,-500.0,0.00014246,2]
[334050290,1722708648196,-500.0,0.00014246,2]
[334050291,1722708648206,-500.0,0.00014246,2]
[334050292,1722708648215,-500.0,0.00014246,2]
[334050293,1722708648225,-430.35982972,0.00014246,2]
[334050294,1722708648235,-505.71006865,0.00014246,2]
[334050295,1722708648246,-500.0,0.00014246,2]
[334050296,1722708648256,-500.0,0.00014246,2]
[334050297,1722708648267,-500.0,0.00014246,2]
[334050298,1722708648276,-500.0,0.00014246,2]
[334050299,1722708648288,-644.54,0.00014246,2]
[334050300,1722708648298,-500.0,0.00014246,2]
[334050301,1722708648308,-151.0,0.00014246,2]
[334050302,1722708648317,-301.606078,0.00014246,2]
[334050303,1722708648327,-904.58,0.00014246,2]
[334050304,1722708648338,-151.861099,0.00014246,2]
[334050305,1722708648348,-500.0,0.00014246,2]
[334050306,1722708648358,-500.0,0.00014246,2]
[334050307,1722708648368,-462.67635832,0.00014246,2]
[334050308,1722708648386,-37.32364168,0.00014246,2]
[334050309,1722708648395,-151.0,0.00014246,2]
[334050310,1722708648405,-500.0,0.00014246,2]
[334050311,1722708648414,-500.0,0.00014246,2]
[334050312,1722708648425,-500.0,0.00014246,2]
[334050313,1722708648436,-500.0,0.00014246,2]
[334050314,1722708648445,-500.0,0.00014246,2]
[334050315,1722708648455,-500.0,0.00014246,2]
[334050316,1722708648465,-602.22,0.00014246,2]
[334050317,1722708648585,-230.91132993,0.00014246,2]
[334050318,1722708648681,156.91793096,9.999e-05,2]
[334050319,1722708650436,412.91003871,0.0001,2]
[334050320,1722708652037,273.37336231,9.9e-05,2]
[334050321,1722708654437,188.2181997,9.999e-05,2]
[334050322,1722708656542,154.77557542,0.0001,2]
[334050323,1722708659872,273.37336231,9.9e-05,2]
[334050324,1722708661906,165.52155498,9.999e-05,2]
[334050325,1722708668060,273.37336231,9.9e-05,2]
[334050326,1722708670768,161.81684602,9.999e-05,2]
[334050327,1722708672248,154.77557542,9.999e-05,2]
[334050328,1722708675931,273.37336231,9.9e-05,2]
[334050329,1722708684596,273.37336231,9.9e-05,2]
[334050330,1722708686057,377.96754041,9.999e-05,2]
[334050331,1722708687666,349.22391885,9.999e-05,2]
[334050333,1722708693015,22.97829729,9.9e-05,2]
[334050971,1722709153780,185.18,0.000178,120]
[334050985,1722709189911,748.0,0.00027,120]
[334050987,1722709273024,225.45,0.000178,120]
[334050996,1722709521607,500.0,0.00027,120]
[334051005,1722709547134,-300.0,9.509e-05,2]
[334051006,1722709547160,-300.0,9.998e-05,2]
[334051007,1722709547186,-279.10287619,9.999e-05,2]
[334051008,1722709547208,-164.51019964,9.999e-05,2]
[334051009,1722709547230,-244.82593148,9.999e-05,2]
[334051010,1722709547252,-156.5983355,9.999e-05,2]
[334051011,1722709547290,-188.2181997,9.999e-05,2]
[334051012,1722709547314,-165.52155498,9.999e-05,2]
[334051013,1722709547336,-154.77557542,9.999e-05,2]
[334051014,1722709547359,-196.45354811,9.999e-05,2]
[334051015,1722709547381,-160.12324259,9.999e-05,2]
[334051016,1722709547402,-155.50527536,9.999e-05,2]
[334051017,1722709547424,-412.91003871,0.0001,2]
[334051018,1722709547446,-154.77557542,0.0001,2]
[334051019,1722709547472,-19.88121422,0.00010131,2]
[334051023,1722709582334,500.0,0.00027,120]
[334051024,1722709588494,500.0,0.00027,120]
[334051025,1722709594668,500.0,0.00027,120]
[334051027,1722709612423,500.0,0.00027,120]
[334051029,1722709619146,500.0,0.00027,120]
[334051030,1722709632104,-300.0,9.414e-05,2]
[334051031,1722709632128,-300.0,0.0001013,2]
[334051032,1722709632153,-1134.3071095,0.00010131,2]
[334051035,1722709653142,-318.42548591,9.9e-05,2]
[334051036,1722709654121,-367.85791511,9.9e-05,2]
[334051037,1722709654145,-156.5983355,9.999e-05,2]
[334051038,1722709654167,-188.2181997,9.999e-05,2]
[334051039,1722709654190,-165.52155498,9.999e-05,2]
[334051040,1722709654213,-412.91003871,0.0001,2]
[334051041,1722709654237,-252.55826438,0.0001,2]
[334051042,1722709654261,-271.95561008,0.00010131,2]
[334051048,1722709758098,-276.40095513,9.899e-05,2]
[334051049,1722709758122,-276.40095513,9.999e-05,2]
[334051050,1722709758145,-165.32058981,9.999e-05,2]
[334051051,1722709758168,-217.47512027,9.999e-05,2]
[334051052,1722709758189,-188.2181997,9.999e-05,2]
[334051053,1722709758212,-2730.54389113,0.00010131,2]
[334051054,1722709758233,-358.44301073,0.00010131,2]
[334051055,1722709758259,-20151.16605624,0.00010131,2]
[334051056,1722709774095,-273.37336231,9.9e-05,2]
[334051057,1722709774250,-412.91003871,0.0001,2]
[334051058,1722709774274,-4728.95272954,0.00010131,2]
[334051059,1722709774298,-496.62,0.00010959,2]
[334051060,1722709782070,273.37336231,9.9e-05,2]
[334051061,1722709790571,273.37336231,9.9e-05,2]
[334051062,1722709793991,1357.31367713,0.00010131,2]
[334051063,1722709798617,273.37336231,9.9e-05,2]
[334051065,1722709807077,273.37336231,9.9e-05,2]
[334051066,1722709815166,49.67790807,9.9e-05,2]
[334051078,1722709834727,-223.69545424,9.9e-05,2]
[334051080,1722709834736,-242.28642096,0.00012,2]
[334051082,1722709834746,-24900.0,0.00012514,2]
[334051083,1722709834756,-1993.02395257,0.000129,2]
[334051085,1722709834765,-167.507494,0.00012986,2]
[334051087,1722709834776,-244.08166116,0.00013283,2]
[334051088,1722709834786,-816.90966401,0.00013598,2]
[334051090,1722709834796,-200.0,0.00013673,2]
[334051092,1722709834807,-1022.38,0.00013685,2]
[334051095,1722709834819,-444.78934566,0.00013688,2]
[334051097,1722709834832,-1511.925,0.00013688,2]
[334051167,1722709840896,-273.37336231,9.9e-05,2]
[334051169,1722709840907,-412.91003871,0.00013283,2]
[334051171,1722709840917,-13506.26158476,0.00013688,2]
[334051173,1722709840929,-46916.3058866,0.00013688,2]
[334051175,1722709840941,-1022.38,0.00013697,2]
[334051176,1722709840952,-500.44866568,0.00013698,2]
[334051179,1722709840964,-500.0,0.00013698,2]
[334051181,1722709840978,-500.0,0.00013698,2]
[334051183,1722709840989,-500.0,0.00013698,2]
[334051185,1722709840999,-500.0,0.00013698,2]
[334051187,1722709841011,-586.83749382,0.00013698,2]
[334051189,1722709841020,-500.0,0.00013698,2]
[334051191,1722709841030,-500.0,0.00013698,2]
[334051193,1722709841039,-500.0,0.00013698,2]
[334051195,1722709841049,-500.0,0.00013698,2]
[334051197,1722709841059,-508.49152173,0.00013698,2]
[334051199,1722709841069,-500.0,0.00013698,2]
[334051201,1722709841079,-500.0,0.00013698,2]
[334051203,1722709841090,-500.0,0.00013698,2]
[334051205,1722709841100,-500.0,0.00013698,2]
[334051207,1722709841110,-500.0,0.00013698,2]
[334051209,1722709841119,-188.0102848,0.00013698,2]
[334051211,1722709841129,-508.22712239,0.00013698,2]
[334051213,1722709841139,-500.0,0.00013698,2]
[334051215,1722709841149,-500.0,0.00013698,2]
[334051217,1722709841158,-500.0,0.00013698,2]
[334051219,1722709841168,-257.52074105,0.00013698,2]
[334051221,1722709841178,-500.0,0.00013698,2]
[334051223,1722709841187,-500.0,0.00013698,2]
[334051224,1722709841197,-500.0,0.00013698,2]
[334051226,1722709841206,-500.0,0.00013698,2]
[334051228,1722709841216,-500.0,0.00013698,2]
[334051230,1722709841227,-500.0,0.00013698,2]
[334051232,1722709841236,-506.964465,0.00013698,2]
[334051233,1722709841246,-500.0,0.00013698,2]
[334051234,1722709841255,-500.0,0.00013698,2]
[334051235,1722709841265,-500.0,0.00013698,2]
[334051236,1722709841275,-500.0,0.00013698,2]
[334051237,1722709841284,-326.03432267,0.00013698,2]
[334051238,1722709841294,-500.0,0.00013698,2]
[334051239,1722709841304,-495.70446836,0.00013698,2]
[334051240,1722709841313,-500.0,0.00013698,2]
[334051241,1722709841323,-500.0,0.00013698,2]
[334051242,1722709841332,-500.0,0.00013698,2]
[334051243,1722709841342,-512.33435201,0.00013698,2]
[334051244,1722709841355,-506.34448599,0.00013698,2]
[334051245,1722709841367,-500.0,0.00013698,2]
[334051246,1722709841377,-503.54419415,0.00013698,2]
[334051247,1722709841387,-500.0,0.00013698,2]
[334051248,1722709841396,-504.10445539,0.00013698,2]
[334051249,1722709841406,-500.0,0.00013698,2]
[334051250,1722709841415,-500.0,0.00013698,2]
[334051251,1722709841425,-500.0,0.00013698,2]
[334051252,1722709841434,-500.0,0.00013698,2]
[334051253,1722709841444,-167.82674403,0.00013698,2]
[334051254,1722709841455,-500.0,0.00013698,2]
[334051255,1722709841465,-500.0,0.00013698,2]
[334051256,1722709841474,-500.0,0.00013698,2]
[334051257,1722709841485,-500.0,0.00013698,2]
[334051258,1722709841495,-500.0,0.00013698,2]
[334051259,1722709841504,-500.0,0.00013698,2]
[334051260,1722709841514,-500.0,0.00013698,2]
[334051261,1722709841523,-500.0,0.00013698,2]
[334051262,1722709841533,-500.0,0.00013698,2]
[334051263,1722709841545,-500.0,0.00013698,2]
[334051264,1722709841557,-500.0,0.00013698,2]
[334051265,1722709841569,-500.0,0.00013698,2]
[334051266,1722709841581,-500.0,0.00013698,2]
[334051267,1722709841591,-500.0,0.00013698,2]
[334051268,1722709841604,-500.0,0.00013698,2]
[334051269,1722709841613,-500.0,0.00013698,2]
[334051270,1722709841623,-504.23758031,0.00013698,2]
[334051271,1722709841634,-500.0,0.00013698,2]
[334051272,1722709841645,-500.0,0.00013698,2]
[334051273,1722709841657,-500.0,0.00013698,2]
[334051274,1722709841669,-500.0,0.00013698,2]
[334051275,1722709841681,-500.0,0.00013698,2]
[334051276,1722709841691,-500.0,0.00013698,2]
[334051277,1722709841700,-500.0,0.00013698,2]
[334051278,1722709841710,-500.0,0.00013698,2]
[334051279,1722709841719,-331.83517555,0.00013698,2]
[334051280,1722709841729,-500.0,0.00013698,2]
[334051281,1722709841738,-500.0,0.00013698,2]
[334051282,1722709841748,-500.0,0.00013698,2]
[334051283,1722709841757,-500.0,0.00013698,2]
[334051284,1722709841767,-500.0,0.00013698,2]
[334051285,1722709841776,-500.0,0.00013698,2]
[334051286,1722709841785,-507.63589301,0.00013698,2]
[334051287,1722709841795,-445.50083456,0.00013698,2]
[334051288,1722709841804,-500.0,0.00013698,2]
[334051289,1722709841813,-483.25628062,0.00013698,2]
[334051290,1722709841823,-500.0,0.00013698,2]
[334051291,1722709841832,-500.0,0.00013698,2]
[334051292,1722709841841,-500.0,0.00013698,2]
[334051293,1722709841852,-500.0,0.00013698,2]
[334051294,1722709841861,-500.0,0.00013698,2]
[334051295,1722709841870,-500.0,0.00013698,2]
[334051296,1722709841880,-538.9,0.00013698,2]
[334051297,1722709841889,-500.0,0.00013698,2]
[334051298,1722709841899,-500.0,0.00013698,2]
[334051299,1722709841908,-500.0,0.00013698,2]
[334051300,1722709841917,-500.0,0.00013698,2]
[334051301,1722709841928,-500.0,0.00013698,2]
[334051302,1722709841939,-500.0,0.00013698,2]
[334051303,1722709841949,-503.05056989,0.00013698,2]
[334051304,1722709841959,-580.06,0.00013698,2]
[334051305,1722709841969,-696.53,0.00013698,2]
[334051306,1722709841979,-500.0,0.00013698,2]
[334051307,1722709841988,-504.03913562,0.00013698,2]
[334051308,1722709841998,-500.0,0.00013698,2]
[334051309,1722709842011,-500.0,0.00013698,2]
[334051310,1722709842023,-500.0,0.00013698,2]
[334051311,1722709842033,-500.0,0.00013698,2]
[334051312,1722709842044,-500.0,0.00013698,2]
[334051313,1722709842054,-500.0,0.00013698,2]
[334051314,1722709842065,-500.0,0.00013698,2]
[334051315,1722709842074,-500.0,0.00013698,2]
[334051316,1722709842084,-500.0,0.00013698,2]
[334051317,1722709842095,-500.0,0.00013698,2]
[334051318,1722709842109,-500.0,0.00013698,2]
[334051319,1722709842118,-450.0,0.00013698,2]
[334051320,1722709842207,-500.0,0.00013698,2]
[334051321,1722709842240,-500.0,0.00013698,2]
[334051322,1722709842250,-500.0,0.00013698,2]
[334051323,1722709842259,-500.0,0.00013698,2]
[334051324,1722709842268,-500.0,0.00013698,2]
[334051325,1722709842277,-500.0,0.00013698,2]
[334051326,1722709842288,-500.0,0.00013698,2]
[334051327,1722709842297,-500.0,0.00013698,2]
[334051328,1722709842307,-500.0,0.00013698,2]
[334051329,1722709842317,-500.0,0.00013698,2]
[334051330,1722709842326,-636.41,0.00013698,2]
[334051331,1722709842336,-500.0,0.00013698,2]
[334051332,1722709842345,-500.0,0.00013698,2]
[334051333,1722709842359,-500.0,0.00013698,2]
[334051334,1722709842369,-503.55350925,0.00013698,2]
[334051335,1722709842378,-500.0,0.00013698,2]
[334051336,1722709842387,-500.0,0.00013698,2]
[334051337,1722709842396,-500.0,0.00013698,2]
[334051338,1722709842405,-500.0,0.00013698,2]
[334051339,1722709842414,-500.0,0.00013698,2]
[334051340,1722709842423,-503.59309508,0.00013698,2]
[334051341,1722709842433,-500.0,0.00013698,2]
[334051342,1722709842442,-500.0,0.00013698,2]
[334051343,1722709842452,-500.0,0.00013698,2]
[334051344,1722709842461,-500.0,0.00013698,2]
[334051345,1722709842470,-500.0,0.00013698,2]
[334051346,1722709842479,-500.0,0.00013698,2]
[334051347,1722709842489,-505.54303621,0.00013698,2]
[334051348,1722709842498,-500.0,0.00013698,2]
[334051349,1722709842508,-500.0,0.00013698,2]
[334051350,1722709842518,-500.0,0.00013698,2]
[334051351,1722709842528,-500.0,0.00013698,2]
[334051352,1722709842537,-504.83737001,0.00013698,2]
[334051353,1722709842547,-500.0,0.00013698,2]
[334051354,1722709842558,-500.0,0.00013698,2]
[334051355,1722709842567,-500.0,0.00013698,2]
[334051356,1722709842577,-500.0,0.00013698,2]
[334051357,1722709842587,-500.0,0.00013698,2]
[334051358,1722709842596,-500.0,0.00013698,2]
[334051359,1722709842609,-500.0,0.00013698,2]
[334051360,1722709842618,-500.0,0.00013698,2]
[334051361,1722709842628,-1022.38,0.00013698,2]
[334051362,1722709842639,-500.0,0.00013698,2]
[334051363,1722709842649,-500.0,0.00013698,2]
[334051364,1722709842659,-500.41144212,0.00013698,2]
[334051365,1722709842669,-503.06931546,0.00013698,2]
[334051366,1722709842679,-500.0,0.00013698,2]
[334051367,1722709842690,-500.0,0.00013698,2]
[334051368,1722709842700,-500.0,0.00013698,2]
[334051369,1722709842710,-500.0,0.00013698,2]
[334051370,1722709842721,-500.0,0.00013698,2]
[334051371,1722709842733,-500.0,0.00013698,2]
[334051372,1722709842743,-500.0,0.00013698,2]
[334051373,1722709842754,-500.0,0.00013698,2]
[334051374,1722709842765,-500.0,0.00013698,2]
[334051375,1722709842775,-500.0,0.00013698,2]
[334051376,1722709842785,-507.20771898,0.00013698,2]
[334051377,1722709842795,-500.0,0.00013698,2]
[334051378,1722709842805,-500.0,0.00013698,2]
[334051379,1722709842815,-500.0,0.00013698,2]
[334051380,1722709842825,-500.0,0.00013698,2]
[334051381,1722709842835,-500.0,0.00013698,2]
[334051382,1722709842845,-500.0,0.00013698,2]
[334051383,1722709842857,-500.0,0.00013698,2]
[334051384,1722709842867,-500.0,0.00013698,2]
[334051385,1722709842876,-732.37,0.00013698,2]
[334051387,1722709842885,-500.0,0.00013698,2]
[334051389,1722709842894,-500.0,0.00013698,2]
[334051390,1722709842904,-193.34206441,0.00013698,2]
[334051392,1722709842915,-500.0,0.00013698,2]
[334051394,1722709842930,-500.0,0.00013698,2]
[334051397,1722709842940,-500.0,0.00013698,2]
[334051400,1722709842951,-500.0,0.00013698,2]
[334051401,1722709842963,-500.0,0.00013698,2]
[334051402,1722709842975,-500.0,0.00013698,2]
[334051404,1722709842987,-500.0,0.00013698,2]
[334051406,1722709842998,-500.0,0.00013698,2]
[334051407,1722709843013,-500.0,0.00013698,2]
[334051408,1722709843023,-500.0,0.00013698,2]
[334051409,1722709843034,-500.0,0.00013698,2]
[334051411,1722709843046,-500.0,0.00013698,2]
[334051413,1722709843058,-500.0,0.00013698,2]
[334051415,1722709843068,-500.0,0.00013698,2]
[334051416,1722709843077,-500.0,0.00013698,2]
[334051417,1722709843086,-500.0,0.00013698,2]
[334051418,1722709843096,-500.0,0.00013698,2]
[334051419,1722709843107,-500.0,0.00013698,2]
[334051420,1722709843116,-500.0,0.00013698,2]
[334051421,1722709843126,-500.0,0.00013698,2]
[334051422,1722709843135,-500.0,0.00013698,2]
[334051423,1722709843144,-500.0,0.00013698,2]
[334051424,1722709843154,-500.0,0.00013698,2]
[334051425,1722709843163,-500.0,0.00013698,2]
[334051426,1722709843172,-503.70080589,0.00013698,2]
[334051427,1722709843181,-611.83,0.00013698,2]
[334051428,1722709843191,-500.0,0.00013698,2]
[334051429,1722709843200,-767.85,0.00013698,2]
[334051430,1722709843211,-500.0,0.00013698,2]
[334051431,1722709843220,-500.0,0.00013698,2]
[334051432,1722709843230,-500.0,0.00013698,2]
[334051433,1722709843239,-511.58829112,0.00013698,2]
[334051434,1722709843249,-500.0,0.00013698,2]
[334051435,1722709843258,-500.0,0.00013698,2]
[334051436,1722709843268,-500.0,0.00013698,2]
[334051437,1722709843277,-885.12,0.00013698,2]
[334051438,1722709843286,-500.0,0.00013698,2]
[334051439,1722709843296,-500.0,0.00013698,2]
[334051440,1722709843305,-286.99440563,0.00013698,2]
[334051441,1722709843314,-500.0,0.00013698,2]
[334051442,1722709843323,-500.0,0.00013698,2]
[334051443,1722709843332,-312.51887577,0.00013698,2]
[334051444,1722709843341,-500.0,0.00013698,2]
[334051445,1722709843351,-500.0,0.00013698,2]
[334051446,1722709843363,-500.0,0.00013698,2]
[334051447,1722709843372,-500.0,0.00013698,2]
[334051448,1722709843381,-500.0,0.00013698,2]
[334051449,1722709843390,-500.0,0.00013698,2]
[334051450,1722709843399,-500.0,0.00013698,2]
[334051451,1722709843408,-500.0,0.00013698,2]
[334051452,1722709843417,-500.0,0.00013698,2]
[334051453,1722709843426,-500.0,0.00013698,2]
[334051454,1722709843436,-500.0,0.00013698,2]
[334051455,1722709843445,-500.0,0.00013698,2]
[334051456,1722709843454,-500.0,0.00013698,2]
[334051457,1722709843463,-500.0,0.00013698,2]
[334051458,1722709843473,-500.0,0.00013698,2]
[334051459,1722709843483,-500.0,0.00013698,2]
[334051460,1722709843492,-500.0,0.00013698,2]
[334051461,1722709843501,-500.0,0.00013698,2]
[334051462,1722709843511,-510.21,0.00013698,2]
[334051463,1722709843521,-500.0,0.00013698,2]
[334051464,1722709843530,-804.73,0.00013698,2]
[334051465,1722709843540,-500.0,0.00013698,2]
[334051466,1722709843549,-500.0,0.00013698,2]
[334051467,1722709843559,-500.0,0.00013698,2]
[334051468,1722709843569,-500.0,0.00013698,2]
[334051469,1722709843578,-500.0,0.00013698,2]
[334051470,1722709843587,-500.0,0.00013698,2]
[334051471,1722709843596,-500.0,0.00013698,2]
[334051472,1722709843608,-1944.13,0.00013698,2]
[334051473,1722709843619,-500.0,0.00013698,2]
[334051474,1722709843628,-500.0,0.00013698,2]
[334051475,1722709843637,-500.0,0.00013698,2]
[334051476,1722709843647,-500.0,0.00013698,2]
[334051477,1722709843656,-500.0,0.00013698,2]
[334051478,1722709843666,-643.47,0.00013698,2]
[334051479,1722709843676,-500.0,0.00013698,2]
[334051480,1722709843685,-500.0,0.00013698,2]
[334051481,1722709843695,-500.0,0.00013698,2]
[334051482,1722709843704,-2343.64,0.00013698,2]
[334051483,1722709843713,-500.0,0.00013698,2]
[334051484,1722709843723,-2447.36,0.00013698,2]
[334051485,1722709843732,-500.0,0.00013698,2]
[334051486,1722709843742,-500.0,0.00013698,2]
[334051487,1722709843752,-500.0,0.00013698,2]
[334051488,1722709843762,-500.0,0.00013698,2]
[334051489,1722709843773,-505.10663485,0.00013698,2]
[334051490,1722709843783,-500.0,0.00013698,2]
[334051491,1722709843792,-500.0,0.00013698,2]
[334051492,1722709843801,-500.0,0.00013698,2]
[334051493,1722709843811,-651.03,0.00013698,2]
[334051494,1722709843820,-500.0,0.00013698,2]
[334051495,1722709843830,-1316.73,0.00013698,2]
[334051496,1722709843839,-500.0,0.00013698,2]
[334051497,1722709843850,-500.0,0.00013698,2]
[334051498,1722709843864,-500.0,0.00013698,2]
[334051499,1722709843873,-500.48732358,0.00013698,2]
[334051500,1722709843883,-500.0,0.00013698,2]
[334051501,1722709843893,-500.0,0.00013698,2]
[334051502,1722709843902,-500.0,0.00013698,2]
[334051504,1722709843911,-500.0,0.00013698,2]
[334051507,1722709843922,-500.0,0.00013698,2]
[334051508,1722709843935,-500.0,0.00013698,2]
[334051509,1722709843945,-500.0,0.00013698,2]
[334051510,1722709843954,-1492.53,0.00013698,2]
[334051511,1722709843964,-3000.0,0.00013699,2]